[Event "106th British-ch 2019"]
[Site "Torquay"]
[Date "2019.08.03"]
[Round "8.15"]
[White "Ogunshola, Olugbemiga (Ben)"]
[Black "Bradbury, Neil H"]
[Result "0-1"]
[ECO "A29"]
[WhiteElo "2172"]
[BlackElo "2322"]
[Annotator "ChessBase"]
[PlyCount "168"]
[EventDate "2019.07.27"]
[EventType "swiss"]
[EventCountry "GBR"]
[SourceTitle "playchess.com"]
[Source "ChessBase"]
[SourceQuality "1"]
[TimeControl "40/5400+30:1800+30"]

1. c4 {[%emt 0:00:00]} e5 {[%emt 0:00:00]} 2. Nf3 {[%emt 0:02:12]} Nc6 {[%emt 0:02:08]} 3. Nc3 {[%emt 0:00:08]} Nf6 {[%emt 0:00:53]} 4. g3 {[%emt 0:02:40]} Bb4 {[%emt 0:09:05]} 5. Bg2 {[%emt 0:00:19]} O-O {[%emt 0:01:27]} 6. O-O {[%emt 0:00:14]} e4 {[%emt 0:03:42]} 7. Ng5 {[%emt 0:02:53]} Bxc3 {[%emt 0:04:57]} 8. bxc3 {[%emt 0:01:59]} Re8 {[%emt 0:03:46]} 9. d3 {[%emt 0:03:44]} exd3 {[%emt 0:01:38]} 10. exd3 {[%emt 0:00:02]} d6 {[%emt 0:00:43]} 11. Rb1 {[%emt 0:00:36]} Ne5 {[%emt 0:24:45]} 12. Ne4 {[%emt 0:08:40]} Bg4 {[%emt 0:03:45]} 13. f3 {[%emt 0:00:57]} Nxe4 {[%emt 0:00:50]} 14. dxe4 {[%emt 0:00:31]} Be6 {[%emt 0:03:02]} 15. Rxb7 {[%emt 0:00:46]} Bxc4 {[%emt 0:07:05]} 16. Rf2 {[%emt 0:00:37]} Qc8 {[%emt 0:00:36]} 17. Rb1 {[%emt 0:05:41]} Qa6 {[%emt 0:00:48]} 18. Be3 {[%emt 0:02:37]} Rab8 {[%emt 0:02:58]} 19. Bf1 {[%emt 0:09:26]} Bxf1 {[%emt 0:07:30]} 20. Qxf1 {[%emt 0:01:35]} Qxf1+ {[%emt 0:02:12]} 21. Rfxf1 {[%emt 0:01:13]} c5 {[%emt 0:00:10]} 22. Kf2 {[%emt 0:05:33]} f6 {[%emt 0:00:44]} 23. Bf4 {[%emt 0:02:28]} Nc4 {[%emt 0:01:42]} 24. Rb3 {[%emt 0:05:20]} Rb6 {[%emt 0:02:52]} 25. Ke2 {[%emt 0:06:14]} Ra6 {[%emt 0:06:43]} 26. Kd3 {[%emt 0:01:31]} Ra4 {[%emt 0:00:58]} 27. Rb7 {[%emt 0:00:44]} g5 {[%emt 0:00:45]} 28. Bc1 {[%emt 0:01:12]} Ne5+ {[%emt 0:01:15]} 29. Kc2 {[%emt 0:05:51]} Rxa2+ {[%emt 0:01:21]} 30. Kb1 {[%emt 0:00:17]} Ra6 {[%emt 0:00:29]} 31. Kc2 {[%emt 0:05:18]} Ra2+ {[%emt 0:02:41]} 32. Kb1 {[%emt 0:00:04]} Ra6 {[%emt 0:00:27]} 33. Kc2 {[%emt 0:00:21]} Ng6 {[%emt 0:02:13]} 34. h4 {[%emt 0:04:20]} gxh4 {[%emt 0:00:57]} 35. gxh4 {[%emt 0:00:04]} Re7 {[%emt 0:00:14]} 36. Rb8+ {[%emt 0:00:53]} Kf7 {[%emt 0:00:39]} 37. h5 {[%emt 0:03:23]} Ne5 {[%emt 0:00:44]} 38. Bf4 {[%emt 0:02:37]} Rb6 {[%emt 0:01:12]} 39. Bxe5 {[%emt 0:03:05]} fxe5 {[%emt 0:00:23]} 40. Ra8 {[%emt 0:05:37]} Kg7 {[%emt 0:00:42]} 41. Rg1+ {[%emt 0:32:00]} Kf6 {[%emt 0:03:35]} 42. h6 {[%emt 0:00:00]} Rbb7 {[%emt 0:01:17]} 43. Kd3 {[%emt 0:00:00]} Rf7 {[%emt 0:00:12]} 44. Re8 {[%emt 0:00:00]} Rbe7 {[%emt 0:00:44]} 45. Reg8 {[%emt 0:00:00]} Ke6 {[%emt 0:04:57]} 46. Ke3 {[%emt 0:00:00]} a5 {[%emt 0:00:21]} 47. Ra1 {[%emt 0:00:00]} Ra7 {[%emt 0:00:33]} 48. Re8+ {[%emt 0:00:00]} Rfe7 {[%emt 0:02:23]} 49. Rg8 {[%emt 0:00:00]} a4 {[%emt 0:00:24]} 50. Kd3 {[%emt 0:00:00]} Rf7 {[%emt 0:00:49]} 51. Ke3 {[%emt 0:00:00]} a3 {[%emt 0:07:49]} 52. Rg2 {[%emt 0:00:02]} Ra4 {[%emt 0:01:47]} 53. Rga2 {[%emt 0:03:19]} Rfa7 {[%emt 0:02:54]} 54. Kd3 {[%emt 0:01:42]} Rf7 {[%emt 0:01:56]} 55. Ke3 {[%emt 0:00:03]} Rf6 {[%emt 0:01:20]} 56. Rxa3 {[%emt 0:00:12]} Rxa3 {[%emt 0:00:02]} 57. Rxa3 {[%emt 0:00:01]} Rxh6 {[%emt 0:00:02]} 58. Ra8 {[%emt 0:01:48]} Rf6 {[%emt 0:01:19]} 59. Rh8 {[%emt 0:01:04]} Rf7 {[%emt 0:00:40]} 60. Ra8 {[%emt 0:02:33]} Rd7 {[%emt 0:03:45]} 61. Rf8 {[%emt 0:01:12]} Rf7 {[%emt 0:01:11]} 62. Ra8 {[%emt 0:00:02]} Rb7 {[%emt 0:00:26]} 63. Rh8 {[%emt 0:01:54]} Kf6 {[%emt 0:00:13]} 64. Rd8 {[%emt 0:00:25]} Rb6 {[%emt 0:00:14]} 65. f4 {[%emt 0:00:15]} exf4+ {[%emt 0:00:21]} 66. Kxf4 {[%emt 0:00:01]} Ke6 {[%emt 0:00:28]} 67. Re8+ {[%emt 0:00:21]} Kf6 {[%emt 0:01:58]} 68. Rf8+ {[%emt 0:00:12]} Kg7 {[%emt 0:00:26]} 69. Rd8 {[%emt 0:00:02]} h5 {[%emt 0:00:46]} 70. Kg5 {[%emt 0:00:38]} Kf7 {[%emt 0:00:28]} 71. Kxh5 {[%emt 0:00:02]} Ke7 {[%emt 0:00:27]} 72. Ra8 {[%emt 0:02:16]} Rb3 {[%emt 0:00:11]} 73. Kg5 {[%emt 0:01:17]} Ke6 {[%emt 0:00:25]} 74. Kf4 {[%emt 0:01:20]} Rxc3 {[%emt 0:00:02]} 75. Rh8 {[%emt 0:00:21]} Rd3 {[%emt 0:00:56]} 76. Rh6+ {[%emt 0:00:36]} Kd7 {[%emt 0:00:10]} 77. e5 {[%emt 0:01:27]} d5 {[%emt 0:01:42]} 78. Rh7+ {[%emt 0:01:17]} Kc6 {[%emt 0:00:55]} 79. Rh6+ {[%emt 0:00:07]} Kb5 {[%emt 0:00:23]} 80. Rd6 {[%emt 0:00:51]} d4 {[%emt 0:00:32]} 81. Ke4 {[%emt 0:00:43]} Re3+ {[%emt 0:00:17]} 82. Kd5 {[%emt 0:00:12]} d3 {[%emt 0:00:10]} 83. Rd8 {[%emt 0:00:59]} d2 {[%emt 0:00:57]} 84. Ke6 {[%emt 0:00:03]} Re2 {[%emt 0:00:04]} 0-1

[Event "106th British-ch 2019"]
[Site "Torquay"]
[Date "2019.08.03"]
[Round "8.16"]
[White "Brewer, Callum D"]
[Black "Claridge-Hansen, William"]
[Result "1/2-1/2"]
[ECO "B01"]
[WhiteElo "2086"]
[BlackElo "2297"]
[Annotator "NA"]
[PlyCount "96"]
[EventDate "2019.07.27"]
[EventType "swiss"]
[EventCountry "GBR"]
[SourceTitle "playchess.com"]
[Source "ChessBase"]
[SourceQuality "1"]
[TimeControl "40/5400+30:1800+30"]

1. e4 {[%emt 0:00:00]} d5 {[%emt 0:00:00]} 2. exd5 {[%emt 0:00:00]} Qxd5 {[%emt 0:00:00]} 3. Nc3 {[%emt 0:00:00]} Qd6 {[%emt 0:00:00]} 4. d4 {[%emt 0:00:00]} Nf6 {[%emt 0:00:13]} 5. Nf3 {[%emt 0:00:00]} c6 {[%emt 0:00:25]} 6. Ne5 {[%emt 0:00:12]} Nbd7 {[%emt 0:00:32]} 7. Nc4 {[%emt 0:00:59]} Qc7 {[%emt 0:00:36]} 8. Qf3 {[%emt 0:00:44]} Nb6 {[%emt 0:00:51]} 9. Bf4 {[%emt 0:06:33]} Qd7 {[%emt 0:05:10]} 10. Nxb6 {[%emt 0:05:12]} axb6 {[%emt 0:00:50]} 11. O-O-O {[%emt 0:00:15]} Qd8 {[%emt 0:07:37]} 12. d5 {[%emt 0:21:43]} Bg4 {[%emt 0:02:53]} 13. dxc6 {[%emt 0:00:01]} Bxf3 {[%emt 0:01:41]} 14. Rxd8+ {[%emt 0:00:27]} Kxd8 {[%emt 0:09:54]} 15. c7+ {[%emt 0:00:20]} Kc8 {[%emt 0:01:03]} 16. gxf3 {[%emt 0:00:34]} e6 {[%emt 0:04:03]} 17. Bc4 {[%emt 0:21:14]} Be7 {[%emt 0:24:27]} 18. Nb5 {[%emt 0:12:56]} Nh5 {[%emt 0:13:34]} 19. Be5 {[%emt 0:01:46]} Bg5+ {[%emt 0:00:51]} 20. Kb1 {[%emt 0:02:10]} Bf4 {[%emt 0:00:23]} 21. Re1 {[%emt 0:05:49]} Bxe5 {[%emt 0:03:02]} 22. Rxe5 {[%emt 0:00:14]} Nf6 {[%emt 0:03:40]} 23. Re3 {[%emt 0:02:47]} Ra5 {[%emt 0:02:45]} 24. b4 {[%emt 0:02:59]} Rxb5 {[%emt 0:03:05]} 25. Bxb5 {[%emt 0:00:06]} Kxc7 {[%emt 0:01:19]} 26. Rd3 {[%emt 0:03:42]} Rd8 {[%emt 0:01:05]} 27. Rxd8 {[%emt 0:02:04]} Kxd8 {[%emt 0:00:02]} 28. c4 {[%emt 0:00:40]} Kc7 {[%emt 0:01:41]} 29. Kc2 {[%emt 0:00:41]} Kd6 {[%emt 0:00:20]} 30. Kd3 {[%emt 0:00:13]} e5 {[%emt 0:00:41]} 31. Ke3 {[%emt 0:04:37]} Nh5 {[%emt 0:01:35]} 32. Ba4 {[%emt 0:00:18]} f5 {[%emt 0:01:42]} 33. Bc2 {[%emt 0:01:18]} g6 {[%emt 0:00:20]} 34. Bd1 {[%emt 0:03:10]} Nf4 {[%emt 0:00:40]} 35. Bc2 {[%emt 0:00:46]} Ne6 {[%emt 0:01:23]} 36. Ba4 {[%emt 0:00:47]} Nf4 {[%emt 0:04:08]} 37. Bc2 {[%emt 0:00:23]} h5 {[%emt 0:00:31]} 38. Ba4 {[%emt 0:01:36]} h4 {[%emt 0:00:15]} 39. Bc2 {[%emt 0:01:01]} Ne6 {[%emt 0:00:40]} 40. Ba4 {[%emt 0:00:46]} Nf4 {[%emt 0:05:10]} 41. Bc2 {[%emt 0:01:01]} Nh3 {[%emt 0:03:32]} 42. Bd1 {[%emt 0:04:15]} Ke6 {[%emt 0:05:25]} 43. Ke2 {[%emt 0:02:07]} f4 {[%emt 0:05:37]} 44. a4 {[%emt 0:03:18]} Kd6 {[%emt 0:01:09]} 45. Kf1 {[%emt 0:03:51]} Ng5 {[%emt 0:00:46]} 46. Ke2 {[%emt 0:00:18]} Ne6 {[%emt 0:00:55]} 47. Kd3 {[%emt 0:01:20]} Nd4 {[%emt 0:00:42]} 48. Kc3 {[%emt 0:01:45]} Ne6 {[%emt 0:03:45]} 1/2-1/2

[Event "106th British-ch 2019"]
[Site "Torquay"]
[Date "2019.08.03"]
[Round "8.17"]
[White "Zapolskis, Antanas"]
[Black "Hand, Freddie"]
[Result "0-1"]
[ECO "C56"]
[WhiteElo "2290"]
[BlackElo "2142"]
[Annotator "NA"]
[PlyCount "106"]
[EventDate "2019.07.27"]
[EventType "swiss"]
[EventCountry "GBR"]
[SourceTitle "playchess.com"]
[Source "ChessBase"]
[SourceQuality "1"]
[TimeControl "40/5400+30:1800+30"]

1. e4 {[%emt 0:02:24]} e5 {[%emt 0:02:04]} 2. d4 {[%emt 0:01:22]} exd4 {[%emt 0:01:03]} 3. Nf3 {[%emt 0:04:49]} Nc6 4. Bc4 {[%emt 0:04:05]} Nf6 {[%emt 0:04:54]} 5. e5 {[%emt 0:07:05]} Ng4 {[%emt 0:00:59]} 6. O-O {[%emt 0:04:04]} Be7 {[%emt 0:02:58]} 7. Re1 {[%emt 0:01:20]} d6 {[%emt 0:17:33]} 8. e6 {[%emt 0:26:15]} fxe6 {[%emt 0:22:16]} 9. Nxd4 {[%emt 0:01:12]} Nxd4 {[%emt 0:00:00]} 10. Qxd4 {[%emt 0:02:47]} Ne5 {[%emt 0:04:53]} 11. Bb5+ {[%emt 0:00:57]} c6 {[%emt 0:00:00]} 12. f4 {[%emt 0:03:11]} Nf7 {[%emt 0:05:40]} 13. Bd3 {[%emt 0:02:30]} O-O {[%emt 0:01:35]} 14. c4 {[%emt 0:01:03]} e5 {[%emt 0:06:46]} 15. Qe3 {[%emt 0:08:49]} Bf6 {[%emt 0:00:30]} 16. Nc3 {[%emt 0:04:24]} exf4 {[%emt 0:02:51]} 17. Qxf4 {[%emt 0:06:00]} Ne5 {[%emt 0:08:40]} 18. Qe3 {[%emt 0:05:49]} Ng4 {[%emt 0:08:39]} 19. Qh3 {[%emt 0:06:26]} g6 {[%emt 0:01:12]} 20. Nd1 {[%emt 0:01:11]} Bd4+ {[%emt 0:01:03]} 21. Kh1 {[%emt 0:00:08]} Nf2+ {[%emt 0:00:38]} 22. Nxf2 {[%emt 0:00:07]} Bxh3 {[%emt 0:03:38]} 23. Nxh3 {[%emt 0:00:08]} Qa5 {[%emt 0:00:32]} 24. Rd1 {[%emt 0:01:10]} Rae8 {[%emt 0:00:50]} 25. Bd2 {[%emt 0:01:06]} Qe5 {[%emt 0:01:32]} 26. Bh6 {[%emt 0:00:25]} Rf7 {[%emt 0:00:25]} 27. Ng5 {[%emt 0:00:10]} Rfe7 {[%emt 0:00:41]} 28. Nf3 {[%emt 0:00:09]} Qh5 {[%emt 0:01:06]} 29. Bg5 {[%emt 0:00:23]} Rf7 {[%emt 0:00:10]} 30. Nxd4 {[%emt 0:01:46]} Qxg5 {[%emt 0:00:17]} 31. Nf3 {[%emt 0:00:08]} Qc5 {[%emt 0:00:59]} 32. Rab1 {[%emt 0:00:20]} a5 {[%emt 0:00:47]} 33. b3 {[%emt 0:00:10]} Re3 {[%emt 0:00:28]} 34. Ra1 {[%emt 0:00:42]} g5 {[%emt 0:00:36]} 35. h3 {[%emt 0:00:09]} Rf6 {[%emt 0:00:38]} 36. Bf1 {[%emt 0:00:23]} g4 {[%emt 0:00:17]} 37. Nh2 {[%emt 0:00:22]} gxh3 {[%emt 0:00:24]} 38. gxh3 {[%emt 0:00:15]} h5 {[%emt 0:00:17]} 39. Bg2 {[%emt 0:01:04]} Rf2 {[%emt 0:00:46]} 40. Rg1 {[%emt 0:00:09]} Kh8 {[%emt 0:00:09]} 41. Raf1 {[%emt 0:30:29]} Ree2 {[%emt 0:30:54]} 42. Nf3 {[%emt 0:04:33]} Rxa2 {[%emt 0:00:00]} 43. Re1 {[%emt 0:00:00]} Rae2 {[%emt 0:00:00]} 44. Rd1 {[%emt 0:00:00]} Re3 {[%emt 0:00:00]} 45. Rde1 {[%emt 0:00:00]} Rxe1 {[%emt 0:00:00]} 46. Rxe1 {[%emt 0:00:00]} Qb6 {[%emt 0:00:00]} 47. Re8+ {[%emt 0:00:00]} Kg7 {[%emt 0:00:00]} 48. Ng5 {[%emt 0:00:00]} Rxg2 {[%emt 0:00:00]} 49. Kxg2 {[%emt 0:00:00]} Qxb3 {[%emt 0:00:00]} 50. h4 {[%emt 0:00:00]} a4 {[%emt 0:00:00]} 51. Re7+ {[%emt 0:00:00]} Kg6 {[%emt 0:00:00]} 52. Nf3 {[%emt 0:00:00]} a3 {[%emt 0:00:00]} 53. Re6+ {[%emt 0:00:00]} Kg7 {[%emt 0:00:00]} 0-1

[Event "106th British-ch 2019"]
[Site "Torquay"]
[Date "2019.08.03"]
[Round "8.18"]
[White "Holland, Chris Kd"]
[Black "Rocco, Federico"]
[Result "0-1"]
[ECO "E48"]
[WhiteElo "2143"]
[BlackElo "2157"]
[Annotator "NA"]
[PlyCount "30"]
[EventDate "2019.07.27"]
[EventType "swiss"]
[EventCountry "GBR"]
[SourceTitle "playchess.com"]
[Source "ChessBase"]
[SourceQuality "1"]
[TimeControl "40/5400+30:1800+30"]

1. d4 {[%emt 0:00:00]} Nf6 {[%emt 0:00:39]} 2. c4 {[%emt 0:00:00]} e6 {[%emt 0:00:02]} 3. Nc3 {[%emt 0:00:00]} Bb4 {[%emt 0:00:04]} 4. e3 {[%emt 0:01:36]} O-O {[%emt 0:00:13]} 5. Bd3 {[%emt 0:00:38]} d5 {[%emt 0:00:24]} 6. Nge2 {[%emt 0:06:00]} c5 {[%emt 0:00:27]} 7. a3 {[%emt 0:00:13]} cxd4 {[%emt 0:01:33]} 8. axb4 {[%emt 0:00:05]} dxc3 {[%emt 0:00:09]} 9. Qb3 {[%emt 0:10:48]} Nc6 {[%emt 0:02:59]} 10. O-O {[%emt 0:16:19]} Ne5 {[%emt 0:11:57]} 11. Rd1 {[%emt 0:01:06]} Nfg4 {[%emt 0:00:52]} 12. h3 {[%emt 0:22:23]} Nxf2 {[%emt 0:04:01]} 13. Kxf2 {[%emt 0:00:16]} Qh4+ {[%emt 0:00:09]} 14. Kg1 {[%emt 0:08:45]} Nxd3 {[%emt 0:00:14]} 15. Rxd3 {[%emt 0:04:49]} dxc4 {[%emt 0:00:08]} 0-1

[Event "106th British-ch 2019"]
[Site "Torquay"]
[Date "2019.08.03"]
[Round "8.19"]
[White "Starley, Robert"]
[Black "Smith, Andrew Philip"]
[Result "1/2-1/2"]
[ECO "B56"]
[WhiteElo "2058"]
[BlackElo "2147"]
[Annotator "NA"]
[PlyCount "75"]
[EventDate "2019.07.27"]
[EventType "swiss"]
[EventCountry "GBR"]
[SourceTitle "playchess.com"]
[Source "ChessBase"]
[SourceQuality "1"]
[TimeControl "40/5400+30:1800+30"]

1. e4 {[%emt 0:00:00]} c5 {[%emt 0:09:14]} 2. Nf3 {[%emt 0:00:00]} d6 {[%emt 0:00:46]} 3. Bb5+ {[%emt 0:00:14]} Nc6 {[%emt 0:03:17]} 4. d4 {[%emt 0:03:29]} cxd4 {[%emt 0:02:16]} 5. Nxd4 {[%emt 0:00:31]} Bd7 {[%emt 0:00:28]} 6. Be3 {[%emt 0:05:10]} Nf6 {[%emt 0:08:25]} 7. Nc3 {[%emt 0:01:41]} a6 {[%emt 0:02:16]} 8. Nxc6 {[%emt 0:03:04]} bxc6 {[%emt 0:02:33]} 9. Bc4 {[%emt 0:00:51]} g6 {[%emt 0:06:46]} 10. O-O {[%emt 0:01:45]} Bg7 {[%emt 0:00:08]} 11. f3 {[%emt 0:01:10]} O-O {[%emt 0:00:22]} 12. Qd2 {[%emt 0:02:59]} Qc7 {[%emt 0:01:28]} 13. Rad1 {[%emt 0:00:52]} Rfb8 {[%emt 0:00:39]} 14. b3 {[%emt 0:03:37]} a5 {[%emt 0:03:44]} 15. a4 {[%emt 0:01:06]} Be6 {[%emt 0:02:17]} 16. Bxe6 {[%emt 0:09:09]} fxe6 {[%emt 0:00:51]} 17. Qd3 {[%emt 0:05:24]} Qc8 {[%emt 0:17:07]} 18. Rfe1 {[%emt 0:10:55]} Rb7 19. Ne2 {[%emt 0:03:39]} c5 {[%emt 0:03:47]} 20. Nf4 {[%emt 0:00:30]} Kf7 {[%emt 0:00:30]} 21. Nh3 {[%emt 0:03:16]} Rb4 {[%emt 0:02:15]} 22. Bd2 {[%emt 0:08:13]} c4 {[%emt 0:04:10]} 23. Qe2 {[%emt 0:00:30]} c3 {[%emt 0:00:30]} 24. Bc1 {[%emt 0:03:13]} e5 {[%emt 0:03:19]} 25. Rd3 {[%emt 0:00:12]} Ra6 {[%emt 0:02:36]} 26. Nf2 {[%emt 0:02:43]} Rc6 {[%emt 0:00:39]} 27. Nd1 {[%emt 0:00:56]} Rb7 {[%emt 0:02:05]} 28. Ne3 {[%emt 0:02:31]} Bh6 {[%emt 0:01:48]} 29. Nd5 {[%emt 0:03:05]} Bxc1 {[%emt 0:01:48]} 30. Rxc1 {[%emt 0:00:08]} Nxd5 {[%emt 0:01:52]} 31. Rxd5 {[%emt 0:01:11]} Rc5 {[%emt 0:00:27]} 32. Rcd1 {[%emt 0:13:16]} Rbc7 {[%emt 0:02:11]} 33. Qe3 {[%emt 0:00:18]} Kg7 {[%emt 0:02:50]} 34. R1d3 {[%emt 0:01:11]} R7c6 {[%emt 0:03:30]} 35. Qg5 {[%emt 0:03:24]} Qc7 {[%emt 0:04:27]} 36. Qe3 {[%emt 0:02:25]} e6 {[%emt 0:01:23]} 37. Rxc5 {[%emt 0:00:06]} Rxc5 {[%emt 0:00:06]} 38. f4 {[%emt 0:02:30]} 1/2-1/2

[Event "106th British-ch 2019"]
[Site "Torquay"]
[Date "2019.08.03"]
[Round "8.20"]
[White "Wall, Tim P"]
[Black "Jones, Steven A"]
[Result "0-1"]
[ECO "C84"]
[WhiteElo "2246"]
[BlackElo "2117"]
[Annotator "NA"]
[PlyCount "68"]
[EventDate "2019.07.27"]
[EventType "swiss"]
[EventCountry "GBR"]
[SourceTitle "playchess.com"]
[Source "ChessBase"]
[SourceQuality "1"]
[TimeControl "40/5400+30:1800+30"]

1. e4 {[%emt 0:07:32]} e5 {[%emt 0:00:11]} 2. Nf3 {[%emt 0:02:04]} Nc6 {[%emt 0:00:50]} 3. Bb5 {[%emt 0:00:41]} a6 {[%emt 0:00:26]} 4. Ba4 {[%emt 0:00:10]} Nf6 {[%emt 0:00:59]} 5. O-O {[%emt 0:00:13]} Be7 {[%emt 0:00:38]} 6. d3 {[%emt 0:00:12]} d6 {[%emt 0:01:35]} 7. c3 {[%emt 0:03:30]} O-O {[%emt 0:01:34]} 8. Re1 {[%emt 0:07:44]} b5 {[%emt 0:08:00]} 9. Bc2 {[%emt 0:00:00]} h6 {[%emt 0:08:07]} 10. d4 {[%emt 0:01:55]} Bg4 {[%emt 0:00:00]} 11. d5 {[%emt 0:15:32]} Na5 {[%emt 0:01:52]} 12. h3 {[%emt 0:00:00]} Bd7 {[%emt 0:02:52]} 13. Nbd2 {[%emt 0:02:58]} c5 {[%emt 0:01:58]} 14. dxc6 {[%emt 0:00:00]} Bxc6 {[%emt 0:07:54]} 15. Nf1 {[%emt 0:00:00]} Qc7 {[%emt 0:07:16]} 16. Ng3 {[%emt 0:00:00]} Rfe8 {[%emt 0:01:12]} 17. a4 {[%emt 0:03:12]} Rad8 {[%emt 0:03:16]} 18. axb5 {[%emt 0:00:29]} axb5 {[%emt 0:00:17]} 19. Nf5 {[%emt 0:04:34]} Bf8 {[%emt 0:00:37]} 20. Qe2 {[%emt 0:00:52]} Nb7 {[%emt 0:08:13]} 21. Nh2 {[%emt 0:10:55]} Nc5 {[%emt 0:13:06]} 22. Ng4 {[%emt 0:12:34]} Ncxe4 {[%emt 0:00:58]} 23. Bxe4 {[%emt 0:06:10]} Nxe4 {[%emt 0:00:08]} 24. Ngxh6+ {[%emt 0:00:28]} gxh6 {[%emt 0:00:33]} 25. Qg4+ {[%emt 0:02:54]} Kh7 {[%emt 0:01:23]} 26. Rxe4 {[%emt 0:02:35]} Bxe4 {[%emt 0:00:07]} 27. Qxe4 {[%emt 0:00:09]} d5 {[%emt 0:03:39]} 28. Qh4 {[%emt 0:01:40]} Re6 {[%emt 0:09:23]} 29. Be3 {[%emt 0:03:59]} Qc8 {[%emt 0:02:20]} 30. Ra5 {[%emt 0:03:55]} b4 {[%emt 0:00:24]} 31. cxb4 {[%emt 0:01:24]} d4 {[%emt 0:00:08]} 32. Bg5 {[%emt 0:01:25]} Rd7 {[%emt 0:00:44]} 33. Qe4 {[%emt 0:04:37]} Qb7 {[%emt 0:04:47]} 34. Qh4 {[%emt 0:01:11]} Rg6 {[%emt 0:01:14]} 0-1

[Event "106th British-ch 2019"]
[Site "Torquay"]
[Date "2019.08.03"]
[Round "8.21"]
[White "Merriman, John"]
[Black "Longson, Sarah N"]
[Result "1/2-1/2"]
[ECO "D45"]
[WhiteElo "2226"]
[BlackElo "2095"]
[Annotator "NA"]
[PlyCount "56"]
[EventDate "2019.07.27"]
[EventType "swiss"]
[EventCountry "GBR"]
[SourceTitle "playchess.com"]
[Source "ChessBase"]
[SourceQuality "1"]
[TimeControl "40/5400+30:1800+30"]

1. d4 {[%emt 0:04:31]} d5 {[%emt 0:00:00]} 2. c4 {[%emt 0:00:10]} e6 {[%emt 0:00:00]} 3. Nc3 {[%emt 0:00:06]} c6 {[%emt 0:00:44]} 4. e3 {[%emt 0:00:17]} Nf6 {[%emt 0:00:29]} 5. Nf3 {[%emt 0:00:24]} Nbd7 {[%emt 0:01:12]} 6. Qc2 {[%emt 0:00:13]} Bd6 {[%emt 0:00:43]} 7. b3 {[%emt 0:00:30]} O-O {[%emt 0:00:32]} 8. Be2 {[%emt 0:04:07]} b6 {[%emt 0:02:00]} 9. O-O {[%emt 0:01:24]} Bb7 {[%emt 0:00:18]} 10. Rd1 {[%emt 0:02:44]} Qe7 {[%emt 0:01:12]} 11. e4 {[%emt 0:10:10]} Nxe4 {[%emt 0:00:57]} 12. Nxe4 {[%emt 0:00:02]} dxe4 {[%emt 0:00:04]} 13. Qxe4 {[%emt 0:00:05]} f5 {[%emt 0:00:52]} 14. Qc2 {[%emt 0:14:14]} c5 {[%emt 0:05:52]} 15. Bg5 {[%emt 0:22:31]} Qf7 {[%emt 0:11:52]} 16. Qd2 {[%emt 0:03:01]} Nf6 {[%emt 0:02:25]} 17. Bf4 {[%emt 0:10:34]} Ne4 {[%emt 0:04:31]} 18. Qc1 {[%emt 0:00:13]} Bxf4 {[%emt 0:24:52]} 19. Qxf4 {[%emt 0:00:06]} Nc3 {[%emt 0:00:32]} 20. Re1 {[%emt 0:01:13]} Nxe2+ {[%emt 0:01:25]} 21. Rxe2 {[%emt 0:00:05]} Bxf3 {[%emt 0:01:33]} 22. gxf3 {[%emt 0:00:43]} cxd4 {[%emt 0:01:04]} 23. Qxd4 {[%emt 0:00:05]} Qg6+ {[%emt 0:04:19]} 24. Kh1 {[%emt 0:04:00]} Qh5 {[%emt 0:00:45]} 25. Rg1 {[%emt 0:04:57]} Qxf3+ {[%emt 0:04:41]} 26. Rg2 {[%emt 0:00:04]} e5 {[%emt 0:02:46]} 27. Qxe5 {[%emt 0:00:48]} Rf7 {[%emt 0:00:20]} 28. Re3 {[%emt 0:01:04]} Qc6 {[%emt 0:02:31]} 1/2-1/2

[Event "106th British-ch 2019"]
[Site "Torquay"]
[Date "2019.08.03"]
[Round "8.22"]
[White "Modi, Shyam Jagdish"]
[Black "Ledger, Dave J"]
[Result "1-0"]
[ECO "E04"]
[WhiteElo "2098"]
[BlackElo "2168"]
[Annotator "NA"]
[PlyCount "61"]
[EventDate "2019.07.27"]
[EventType "swiss"]
[EventCountry "GBR"]
[SourceTitle "playchess.com"]
[Source "ChessBase"]
[SourceQuality "1"]
[TimeControl "40/5400+30:1800+30"]

1. d4 {[%emt 0:00:00]} Nf6 {[%emt 0:00:00]} 2. c4 {[%emt 0:00:00]} e6 {[%emt 0:00:00]} 3. g3 {[%emt 0:00:00]} d5 {[%emt 0:00:46]} 4. Nf3 {[%emt 0:00:03]} dxc4 {[%emt 0:01:10]} 5. Bg2 {[%emt 0:00:01]} Bb4+ {[%emt 0:00:07]} 6. Bd2 {[%emt 0:01:23]} c5 {[%emt 0:01:48]} 7. Bxb4 {[%emt 0:20:57]} cxb4 {[%emt 0:00:42]} 8. Ne5 {[%emt 0:03:15]} O-O {[%emt 0:02:45]} 9. Nxc4 {[%emt 0:02:37]} Nc6 {[%emt 0:02:19]} 10. e3 {[%emt 0:00:38]} e5 {[%emt 0:05:54]} 11. d5 {[%emt 0:08:08]} b5 {[%emt 0:01:38]} 12. O-O {[%emt 0:07:47]} Bg4 {[%emt 0:08:37]} 13. Qd2 {[%emt 0:03:24]} bxc4 {[%emt 0:07:40]} 14. dxc6 {[%emt 0:00:02]} a5 {[%emt 0:03:04]} 15. Qc2 {[%emt 0:05:53]} Qd3 {[%emt 0:03:39]} 16. Qxd3 {[%emt 0:11:04]} cxd3 {[%emt 0:00:05]} 17. Nd2 {[%emt 0:00:32]} Rfe8 {[%emt 0:05:37]} 18. Rfc1 {[%emt 0:02:53]} Rac8 {[%emt 0:00:21]} 19. Rc5 {[%emt 0:01:49]} e4 {[%emt 0:00:55]} 20. Rac1 {[%emt 0:01:25]} Re6 {[%emt 0:01:37]} 21. h3 {[%emt 0:01:16]} Be2 {[%emt 0:00:34]} 22. Rxa5 {[%emt 0:00:48]} h5 {[%emt 0:00:18]} 23. Rac5 {[%emt 0:00:59]} Kf8 {[%emt 0:01:58]} 24. Bf1 {[%emt 0:06:49]} g6 {[%emt 0:01:40]} 25. Nb3 {[%emt 0:00:57]} Bf3 {[%emt 0:02:53]} 26. Bg2 {[%emt 0:00:26]} Be2 {[%emt 0:01:22]} 27. Bf1 {[%emt 0:01:17]} Bf3 {[%emt 0:00:08]} 28. Nd2 {[%emt 0:02:00]} Rd6 {[%emt 0:00:58]} 29. Bg2 {[%emt 0:01:24]} Rc7 {[%emt 0:00:39]} 30. Nxf3 {[%emt 0:02:33]} exf3 {[%emt 0:00:04]} 31. Bxf3 {[%emt 0:00:06]} 1-0

[Event "106th British-ch 2019"]
[Site "Torquay"]
[Date "2019.08.03"]
[Round "8.23"]
[White "Villiers, Thomas"]
[Black "Jaufarally, Nadia"]
[Result "1-0"]
[ECO "B07"]
[WhiteElo "2218"]
[BlackElo "1944"]
[Annotator "NA"]
[PlyCount "39"]
[EventDate "2019.07.27"]
[EventType "swiss"]
[EventCountry "GBR"]
[SourceTitle "playchess.com"]
[Source "ChessBase"]
[SourceQuality "1"]
[TimeControl "40/5400+30:1800+30"]

1. d4 {[%emt 0:00:00]} Nf6 {[%emt 0:00:00]} 2. Nd2 {[%emt 0:00:00]} g6 {[%emt 0:00:04]} 3. e4 {[%emt 0:00:00]} d6 {[%emt 0:00:06]} 4. Ngf3 {[%emt 0:00:10]} Bg7 {[%emt 0:00:24]} 5. Bd3 {[%emt 0:00:16]} O-O {[%emt 0:00:27]} 6. O-O {[%emt 0:00:07]} Nh5 {[%emt 0:01:04]} 7. Nc4 {[%emt 0:00:21]} Qe8 {[%emt 0:05:16]} 8. c3 {[%emt 0:04:11]} e5 {[%emt 0:01:29]} 9. Be3 {[%emt 0:00:02]} f5 {[%emt 0:04:12]} 10. dxe5 {[%emt 0:01:24]} f4 {[%emt 0:01:08]} 11. Bd4 {[%emt 0:06:11]} c5 {[%emt 0:14:20]} 12. Nxd6 {[%emt 0:01:05]} Qc6 {[%emt 0:00:09]} 13. Qb3+ {[%emt 0:00:22]} Kh8 {[%emt 0:00:13]} 14. Ng5 {[%emt 0:01:16]} h6 {[%emt 0:02:34]} 15. Ndf7+ {[%emt 0:00:18]} Rxf7 {[%emt 0:00:14]} 16. Nxf7+ {[%emt 0:01:35]} Kh7 {[%emt 0:00:12]} 17. Bb5 {[%emt 0:03:56]} Qb6 {[%emt 0:16:27]} 18. Nd6 {[%emt 0:00:08]} Na6 {[%emt 0:01:45]} 19. Bxa6 {[%emt 0:00:39]} bxa6 {[%emt 0:00:51]} 20. Qd5 {[%emt 0:00:08]} 1-0